bitfinex-derivatives/quotes_BTCF0:USTF0_20250417
["timestamp","ask_amount","ask_price","bid_price","bid_amount"]
[1744907201243,0.00017617,84997.0,84996.0,0.1176737]
[1744907201441,0.00025617,84997.0,84996.0,0.1176737]
[1744907201642,0.00017617,84997.0,84996.0,0.1176737]
[1744907201843,0.11792847,84997.0,84996.0,0.1176737]
[1744907202044,0.00025617,84997.0,84996.0,0.1176737]
[1744907202244,0.00017617,84997.0,84996.0,0.1176737]
[1744907202444,0.11784847,84997.0,84996.0,0.1176737]
[1744907202945,0.11792847,84997.0,84996.0,0.1276737]
[1744907203334,0.00025617,84997.0,84996.0,0.1276737]
[1744907204838,0.11792847,84997.0,84996.0,0.1276737]
[1744907205948,0.00025617,84997.0,84996.0,0.1276737]
[1744907207034,0.00025617,84997.0,84996.0,0.14530264]
[1744907207245,0.00025617,84997.0,84996.0,0.14530309]
[1744907207833,0.00025617,84997.0,84996.0,0.1276737]
[1744907208136,0.00025617,84997.0,84996.0,0.14328875]
[1744907208741,0.00025617,84997.0,84996.0,0.16066647]
[1744907209151,0.00025617,84997.0,84996.0,0.16042979]
[1744907209744,0.1354,85000.0,84999.0,0.1176696]
[1744907209939,0.005,85008.0,85000.0,0.0588335]
[1744907210135,0.005,85008.0,85007.0,0.4784585]
[1744907210336,0.1176723,84997.0,84991.0,0.3608]
[1744907210639,0.1176793,84992.0,84991.0,0.3608]
[1744907211142,0.1276793,84992.0,84991.0,0.3608]
[1744907211345,0.1176917,84983.0,84975.0,0.1177021]
[1744907211548,0.4884917,84983.0,84976.0,0.1177006]
[1744907211939,0.4884917,84983.0,84975.0,1.5823]
[1744907212236,0.4884917,84983.0,84977.0,0.1176991]
[1744907212435,0.4884917,84983.0,84975.0,1.5823]
[1744907212632,0.4884917,84983.0,84975.0,1.6411509]
[1744907212837,0.4884917,84983.0,84979.0,0.1176968]
[1744907213033,0.4884917,84983.0,84980.0,0.1176954]
[1744907213235,0.4884917,84983.0,84975.0,1.6411509]
[1744907213749,0.4884917,84983.0,84981.0,0.1176936]
[1744907214137,0.4884917,84983.0,84979.0,0.0588482]
[1744907214337,0.4884917,84983.0,84975.0,1.5]
[1744907215947,0.4884917,84983.0,84975.0,1.6177028]
[1744907217046,0.6208,84983.0,84943.0,0.3608]
[1744907217349,0.1177283,84958.0,84957.0,0.1177253]
[1744907217548,0.1177283,84958.0,84957.0,1.6177253]
[1744907218048,0.0853,84959.0,84958.0,0.1177264]
[1744907218249,0.3608,84975.0,84958.0,0.1177264]
[1744907218250,0.2005172,84965.0,84964.0,0.117718]
[1744907218642,0.117718,84964.0,84963.0,0.0878]
[1744907219046,0.285818,84964.0,84963.0,0.2055194]
[1744907219251,8e-05,84965.0,84964.0,0.117718]
[1744907219556,8e-05,84965.0,84964.0,0.199418]
[1744907219752,0.1177167,84965.0,84964.0,0.199418]
[1744907219952,0.1177967,84965.0,84964.0,0.284018]
[1744907220253,0.1177967,84965.0,84964.0,0.29944976]
[1744907220651,8e-05,84965.0,84964.0,0.29944976]
[1744907220947,8e-05,84965.0,84964.0,0.369618]
[1744907221153,0.00017654,84966.0,84965.0,0.1177167]
[1744907221353,0.00017654,84966.0,84965.0,0.2840167]
[1744907221553,0.00017654,84966.0,84965.0,0.2940167]
[1744907221750,0.117691,84984.0,84983.0,0.1176903]
[1744907221949,0.117691,84984.0,84983.0,0.13075892]
[1744907222456,0.117771,84984.0,84983.0,1.64653305]
[1744907222657,0.117771,84984.0,84983.0,1.81053305]
[1744907222851,0.203171,84984.0,84983.0,1.81053305]
[1744907223047,0.203171,84984.0,84983.0,1.61284275]
[1744907224861,0.203171,84984.0,84983.0,1.61273807]
[1744907226359,0.1177014,84976.0,84975.0,0.00017654]
[1744907226547,0.3708,84976.0,84945.0,0.3608]
[1744907226751,0.3608,84961.0,84952.0,0.1177329]
[1744907226946,0.1646,84960.0,84958.0,0.117725]
[1744907227149,0.1646,84960.0,84957.0,0.0588635]
[1744907227355,0.2823236,84960.0,84959.0,0.117725]
[1744907227860,0.2824036,84960.0,84959.0,0.117725]
[1744907228161,0.117725,84959.0,84958.0,1.5]
[1744907228455,0.478525,84959.0,84958.0,1.6177264]
[1744907228656,0.644125,84959.0,84958.0,1.6177264]
[1744907229249,0.1177291,84956.0,84955.0,0.1177301]
[1744907229862,0.1177361,84951.0,84950.0,0.00017654]
[1744907230052,0.4785361,84951.0,84950.0,0.00017654]
[1744907230361,0.1177499,84941.0,84940.0,0.29744687]
[1744907230554,0.4785499,84941.0,84940.0,0.29744687]
[1744907230958,0.4785499,84941.0,84940.0,0.29752687]
[1744907231256,0.6441499,84941.0,84940.0,0.41527817]
[1744907231961,0.6441499,84941.0,84940.0,0.1178313]
[1744907232263,0.6441499,84941.0,84940.0,8e-05]
[1744907232463,0.1177568,84936.0,84935.0,0.000108]
[1744907232667,0.117761,84933.0,84932.0,0.00017654]
[1744907232967,0.117761,84933.0,84932.0,0.11793894]
[1744907232968,0.478561,84933.0,84932.0,0.11793894]
[1744907233359,0.478561,84933.0,84932.0,0.11801894]
[1744907237362,0.1425796,84935.0,84932.0,0.00025654]
[1744907237564,0.1177596,84934.0,84933.0,0.2858596]
[1744907237865,0.0588796,84935.0,84934.0,0.1766392]
[1744907237866,8e-05,84935.0,84934.0,0.1766392]
[1744907238070,8e-05,84935.0,84934.0,0.3471392]
[1744907238363,0.05901751,84946.0,84934.0,0.3471392]
[1744907238364,0.00010801,84951.0,84943.0,0.0588733]
[1744907238554,0.00010801,84951.0,84948.0,0.1177402]
[1744907238753,0.3608,84960.0,84948.0,0.12905145]
[1744907238961,0.00025654,84949.0,84948.0,0.12905145]
[1744907239166,0.00017654,84949.0,84948.0,0.12905145]
[1744907239364,0.00025654,84949.0,84948.0,0.12905145]
[1744907239561,0.00025654,84949.0,84948.0,0.37905145]
[1744907239762,0.00017654,84949.0,84948.0,0.38905145]
[1744907239964,0.00025654,84949.0,84948.0,1.88905145]
[1744907240277,0.00025654,84949.0,84948.0,1.63905145]
[1744907243663,0.00025654,84949.0,84948.0,1.62905145]
[1744907244271,0.00017654,84949.0,84948.0,1.63905145]
[1744907244470,0.00025654,84949.0,84948.0,1.63905145]
[1744907246171,0.00010801,84963.0,84962.0,0.1177208]
[1744907246372,1e-08,84963.0,84962.0,0.1177208]
[1744907246670,0.3608,84976.0,84975.0,0.1177028]
[1744907246867,0.0588488,84979.0,84978.0,0.1176986]
[1744907248565,0.00010801,84982.0,84981.0,0.1176945]
[1744907248566,1e-08,84982.0,84981.0,0.1176945]
[1744907248769,0.00017654,84987.0,84986.0,0.1176876]
[1744907249362,0.11786274,84987.0,84986.0,0.1988876]
[1744907250367,0.11786274,84987.0,84981.0,0.0588472]
[1744907250368,0.1176931,84982.0,84981.0,0.0588472]
[1744907250569,0.4784931,84982.0,84981.0,0.1765405]
[1744907254873,0.3608,84982.0,84981.0,0.1765405]
[1744907255063,0.0816,84986.0,84981.0,0.1765405]
[1744907255260,0.0816,84986.0,84985.0,0.117689]
[1744907255464,0.00017654,84987.0,84986.0,0.1176876]
[1744907256577,0.00025654,84987.0,84986.0,0.1176876]
[1744907260562,0.11794274,84987.0,84986.0,0.1176876]
[1744907262367,0.0588442,84986.0,84970.0,0.05903124]
[1744907262578,0.4785083,84971.0,84970.0,0.23559564]
[1744907263169,0.4785083,84971.0,84970.0,0.11788594]
[1744907263369,0.0867,84972.0,84971.0,0.1177083]
[1744907263578,0.204407,84972.0,84971.0,0.2054083]
[1744907264073,0.204487,84972.0,84971.0,0.2054083]
[1744907264275,0.204487,84972.0,84971.0,0.0877]
[1744907265282,0.204487,84972.0,84971.0,0.2054083]
[1744907265579,8e-05,84972.0,84971.0,0.2054083]
[1744907265777,0.203998,84979.0,84978.0,0.1176986]
[1744907266577,0.203998,84979.0,84978.0,0.2884986]
[1744907266881,0.204078,84979.0,84978.0,0.2884986]
[1744907267076,0.294278,84979.0,84978.0,0.2884986]
[1744907268073,0.294278,84979.0,84978.0,0.0896]
[1744907268476,0.1177083,84971.0,84970.0,0.00017654]
[1744907268681,0.4785083,84971.0,84970.0,0.00017654]
[1744907268989,0.0588591,84964.0,84944.0,0.23646677]
[1744907269179,0.117743,84946.0,84945.0,0.0892]
[1744907269487,0.478543,84946.0,84945.0,0.0892]
[1744907270085,0.656743,84946.0,84945.0,0.0892]
[1744907270388,0.656743,84946.0,84945.0,0.2069444]
[1744907275192,0.656743,84946.0,84945.0,0.0892]
[1744907275489,0.656743,84946.0,84945.0,0.2069444]
[1744907275686,0.1177499,84941.0,84940.0,0.00700375]
[1744907276479,0.1177499,84941.0,84940.0,0.00708375]
[1744907276681,0.2018499,84941.0,84940.0,0.00708375]
[1744907277178,0.2018499,84941.0,84940.0,0.00700375]
[1744907277487,0.2018499,84941.0,84940.0,0.00708375]
[1744907279700,0.0841,84941.0,84940.0,0.12483505]
[1744907279887,0.1177434,84946.0,84945.0,0.1177444]
[1744907280389,0.1177444,84945.0,84944.0,0.0881]
[1744907280590,0.5644444,84945.0,84944.0,0.0839]
[1744907280994,0.5644444,84945.0,84944.0,0.2016458]
[1744907281894,0.1177499,84941.0,84940.0,0.00708375]
[1744907282395,0.1177499,84941.0,84940.0,0.12483505]
[1744907283093,0.1177499,84941.0,84940.0,0.00708375]
[1744907283699,0.1177499,84941.0,84940.0,0.00700375]
[1744907283889,0.1177499,84941.0,84940.0,0.00708375]
[1744907284300,0.1177499,84941.0,84940.0,0.12483505]
[1744907286501,0.2048499,84941.0,84940.0,0.30133505]
[1744907287397,0.2908499,84941.0,84940.0,0.30133505]
[1744907287702,0.2048499,84941.0,84940.0,0.30133505]
[1744907288395,0.4196722,84945.0,84944.0,0.1177458]
[1744907289018,0.4197522,84945.0,84944.0,0.1177458]
[1744907289187,0.36088,84945.0,84944.0,0.1177458]
[1744907289389,8e-05,84945.0,84944.0,0.1177458]
[1744907289599,0.1177434,84946.0,84945.0,0.1177444]
[1744907290000,0.4785434,84946.0,84945.0,0.2965444]
[1744907291399,0.4785434,84946.0,84945.0,0.09]
[1744907291586,0.1177499,84941.0,84940.0,0.00700375]
[1744907291991,0.1177499,84941.0,84940.0,0.12475505]
[1744907292394,0.0588736,84943.0,84942.0,0.1177485]
[1744907293006,0.1177485,84942.0,84941.0,0.0836]
[1744907293190,0.2066485,84942.0,84941.0,0.2013499]
[1744907293611,0.2066485,84942.0,84941.0,0.0836]
[1744907293990,0.2066485,84942.0,84941.0,0.2013499]
[1744907294690,0.2066485,84942.0,84941.0,0.2014299]
[1744907295699,0.2066485,84942.0,84941.0,0.2850299]
[1744907296699,0.1177485,84942.0,84941.0,0.2850299]
[1744907296901,0.1177485,84942.0,84941.0,0.16728]
[1744907297100,0.1177485,84942.0,84941.0,0.2850299]
[1744907297497,0.2020485,84942.0,84941.0,0.2850299]
[1744907300104,0.4196715,84946.0,84943.0,0.0588729]
[1744907300304,0.4196715,84946.0,84945.0,0.1177444]
[1744907300705,0.4196715,84946.0,84945.0,0.2955444]
[1744907300903,0.4197515,84946.0,84945.0,0.2955444]
[1744907301797,0.36088,84946.0,84945.0,0.2955444]
[1744907302596,0.3608,84946.0,84945.0,0.2955444]
[1744907302803,0.36088,84946.0,84945.0,0.2955444]
[1744907303911,8e-05,84946.0,84945.0,0.2955444]
[1744907304110,0.45048045,84953.0,84952.0,0.1177347]
[1744907304312,0.56821375,84953.0,84952.0,0.1177347]
[1744907304608,0.4785333,84953.0,84952.0,0.2891347]
[1744907305923,0.3608,84953.0,84952.0,0.2891347]
[1744907307612,0.08985699,84954.0,84953.0,0.1177333]
[1744907307809,0.08985699,84954.0,84953.0,0.2891333]
[1744907308604,0.00017654,84954.0,84953.0,0.2891333]
[1744907308819,0.00025654,84954.0,84953.0,0.2891333]
[1744907315611,0.11798844,84954.0,84953.0,0.2891333]
[1744907315915,0.00025654,84954.0,84953.0,0.2891333]
[1744907316713,0.08415654,84954.0,84953.0,0.2891333]
[1744907316913,0.20188844,84954.0,84953.0,0.2891333]
[1744907317114,0.28648844,84954.0,84953.0,0.0878]
[1744907317317,0.37328844,84954.0,84953.0,0.2055333]
[1744907318715,0.1177471,84943.0,84940.0,0.00711175]
[1744907319031,0.1177485,84942.0,84941.0,0.1178292]
[1744907319222,0.3740485,84942.0,84941.0,0.1178292]
[1744907319413,0.3740485,84942.0,84941.0,0.1177492]
[1744907319725,0.3741285,84942.0,84941.0,0.2085292]
[1744907320216,0.08498,84942.0,84941.0,0.2085292]
[1744907320527,8e-05,84942.0,84941.0,0.2986292]
[1744907320714,0.1744,84953.0,84952.0,0.1177347]
[1744907320913,0.3768333,84953.0,84952.0,0.1177347]
[1744907321221,0.7376333,84953.0,84952.0,0.1177347]
[1744907321819,0.7377133,84953.0,84952.0,0.1177347]
[1744907326119,0.5633133,84953.0,84952.0,0.1177347]
[1744907326422,0.44558,84953.0,84952.0,0.1177347]
[1744907326622,0.4455,84953.0,84952.0,0.1177347]
[1744907327016,8e-05,84953.0,84952.0,0.1177347]
[1744907327217,0.00017654,84954.0,84953.0,0.1177333]
[1744907328018,0.00017654,84954.0,84953.0,0.2917333]
[1744907329518,0.47870844,84954.0,84953.0,0.2917333]
[1744907329921,0.47870844,84954.0,84953.0,0.2082333]
[1744907330816,0.65220844,84954.0,84953.0,0.2082333]
[1744907335834,0.65220844,84954.0,84953.0,0.1177333]
[1744907336132,0.1766117,84949.0,84948.0,0.1766056]
[1744907336324,0.1766117,84949.0,84948.0,0.0588697]
[1744907340031,0.1766117,84949.0,84948.0,0.1462697]
[1744907341345,0.1766117,84949.0,84948.0,0.0588697]
[1744907341563,0.1177458,84944.0,84943.0,0.204945]
[1744907341733,0.4785458,84944.0,84943.0,0.204945]
[1744907341934,0.6445458,84944.0,84943.0,0.204945]
[1744907343742,0.6445458,84944.0,84943.0,0.291745]
[1744907344137,0.5268,84944.0,84943.0,0.291745]
[1744907344333,0.4434,84944.0,84943.0,0.291745]
[1744907344539,0.3608,84944.0,84943.0,0.291745]
[1744907344845,0.4786258,84944.0,84943.0,0.291745]
[1744907345245,0.4786258,84944.0,84943.0,0.204945]
[1744907345638,0.6533258,84944.0,84943.0,0.204945]
[1744907353556,0.6533258,84944.0,84943.0,0.290645]
[1744907353952,8e-05,84944.0,84943.0,0.290645]
[1744907354156,0.00010801,84959.0,84943.0,0.290645]
[1744907354157,0.3608,84953.0,84949.0,0.1177388]
[1744907354450,0.08990779,84950.0,84949.0,0.1177388]
[1744907354650,0.08979978,84950.0,84949.0,0.1177388]
[1744907354957,0.08987978,84950.0,84949.0,0.2916388]
[1744907355154,0.08979978,84950.0,84949.0,0.2916388]
[1744907355451,0.08987978,84950.0,84949.0,1.7916388]
[1744907357643,0.08987978,84950.0,84949.0,0.2916388]
[1744907360253,0.00017654,84954.0,84953.0,0.1177333]
[1744907360452,0.00017654,84954.0,84953.0,0.4885333]
[1744907360963,0.00017654,84954.0,84953.0,1.9885333]
[1744907361153,0.00025654,84954.0,84953.0,1.9885333]
[1744907361550,0.00025654,84954.0,84953.0,2.1698333]
[1744907364161,1e-08,84954.0,84953.0,2.1698333]
[1744907367157,0.11773191,84954.0,84953.0,0.3090333]
[1744907367360,1e-08,84954.0,84953.0,0.3090333]
[1744907367554,1e-08,84954.0,84953.0,0.2990333]
[1744907381076,1e-08,84954.0,84953.0,0.6598333]
[1744907381577,0.00028455,84962.0,84953.0,0.6598333]
[1744907381578,0.0588471,84982.0,84968.0,0.1177125]
[1744907381876,0.092,84973.0,84972.0,0.117707]
[1744907383174,0.1835,84973.0,84972.0,0.117707]
[1744907385558,0.1835,84973.0,84972.0,0.207407]
[1744907385973,0.18358,84973.0,84972.0,0.207407]
[1744907386665,0.1835,84973.0,84972.0,0.207407]
[1744907386865,0.18358,84973.0,84972.0,0.207407]
[1744907387269,0.18358,84973.0,84972.0,0.292707]
[1744907387666,0.18358,84973.0,84972.0,0.207407]
[1744907389674,8e-05,84979.0,84978.0,0.1176986]
[1744907390178,8e-05,84979.0,84978.0,1.6176986]
[1744907390363,8e-05,84979.0,84978.0,1.7923986]
[1744907392983,0.08480801,84982.0,84981.0,0.1176945]
[1744907393170,0.088,84986.0,84985.0,0.117689]
[1744907393371,0.16782078,84987.0,84986.0,0.1176876]
[1744907393572,0.16782078,84987.0,84986.0,0.2955876]
[1744907395180,0.04857,84987.0,84986.0,0.2955876]
[1744907396879,0.117662,85005.0,85000.0,0.1176682]
[1744907397178,0.1176644,85003.0,85000.0,0.1176682]
[1744907397372,0.11925078,85002.0,85000.0,0.1176682]
[1744907397574,0.00053146,85001.0,85000.0,0.1176682]
[1744907397773,0.11925078,85002.0,85001.0,0.1176668]
[1744907398083,0.23691618,85002.0,85001.0,0.1176668]
[1744907398281,0.1176751,84995.0,84994.0,1.676511]
[1744907398476,0.4784751,84995.0,84994.0,1.676511]
[1744907398676,0.4784751,84995.0,84994.0,0.176511]
[1744907399284,0.7457751,84995.0,84994.0,0.176511]
[1744907400979,8e-05,85002.0,85001.0,0.1176668]
[1744907401885,0.1176602,85006.0,85005.0,0.1176599]
[1744907402079,0.2926602,85006.0,85005.0,0.1176599]
[1744907402272,0.00010801,85007.0,85006.0,0.1176599]
[1744907403485,0.20446651,85007.0,85006.0,0.1176599]
[1744907403986,0.08680801,85007.0,85006.0,0.1176599]
[1744907405184,0.00010801,85007.0,85006.0,0.1176599]
[1744907406083,1e-08,85007.0,85006.0,0.4784599]
[1744907406287,0.005,85008.0,85007.0,0.1176585]
[1744907406680,0.3846571,85008.0,85007.0,0.1176585]
[1744907408881,0.1176599,85006.0,85005.0,0.0588301]
[1744907409108,0.267,85008.0,85007.0,0.1176585]
[1744907409579,0.7454571,85008.0,85007.0,0.1176585]
[1744907410487,0.1765144,84998.0,84997.0,0.117668]
[1744907410684,0.5373144,84998.0,84997.0,0.117668]
[1744907410880,0.1176765,84994.0,84993.0,0.0938]
[1744907411291,0.0588375,84996.0,84981.0,0.058847]
[1744907411292,0.0588432,84987.0,84981.0,0.1765337]
[1744907411492,0.176537,84984.0,84983.0,0.1176917]
[1744907412089,0.351537,84984.0,84983.0,0.1176917]
[1744907412282,0.175,84984.0,84983.0,0.1176917]
[1744907412482,0.2926903,84984.0,84983.0,0.1176917]
[1744907413286,0.1176931,84982.0,84981.0,0.0588456]
[1744907413686,0.175,84984.0,84983.0,0.1176917]
[1744907414283,0.2926903,84984.0,84983.0,0.1176917]
[1744907414587,0.175,84984.0,84983.0,0.2079917]
[1744907415484,8e-05,84991.0,84990.0,0.117682]
[1744907416089,0.1177606,84991.0,84990.0,0.117682]
[1744907416884,0.3039606,84991.0,84990.0,0.117682]
[1744907417086,0.18628,84991.0,84990.0,0.117682]
[1744907417284,0.3039606,84991.0,84990.0,0.117682]
[1744907417480,0.18628,84991.0,84990.0,0.117682]
[1744907417679,0.1862,84991.0,84990.0,0.117682]
[1744907417877,0.18628,84991.0,84990.0,0.117682]
[1744907418077,0.3039606,84991.0,84990.0,0.202082]
[1744907418789,0.3039606,84991.0,84990.0,0.117682]
[1744907418991,0.3039606,84991.0,84973.0,0.0111835]
[1744907418992,0.2451206,84991.0,84973.0,0.0111835]
[1744907419191,0.2451206,84991.0,84961.0,0.3608]
[1744907419192,0.1177014,84976.0,84968.0,0.0588557]
[1744907419383,0.1177139,84967.0,84962.0,0.09562625]
[1744907419695,0.4785139,84967.0,84966.0,0.1181853]
[1744907419991,0.4785139,84967.0,84966.0,0.00047]
[1744907420178,0.4785139,84967.0,84966.0,0.1181853]
[1744907420379,0.6620139,84967.0,84966.0,0.1181853]
[1744907420984,0.3012139,84967.0,84966.0,0.1181853]
[1744907421180,0.3012139,84967.0,84966.0,0.2062853]
[1744907421384,0.1835,84967.0,84966.0,0.2062853]
[1744907421690,0.0904,84967.0,84966.0,0.2062853]
[1744907422083,0.3608,84970.0,84969.0,0.1177111]
[1744907422686,0.2081072,84972.0,84971.0,0.1177083]
[1744907422891,0.208107,84972.0,84971.0,0.1177083]
[1744907423493,0.208107,84972.0,84971.0,0.2046083]
[1744907423893,0.208107,84972.0,84971.0,0.1177083]
[1744907424288,0.208107,84972.0,84966.0,0.00047]
[1744907424289,0.0588562,84969.0,84966.0,0.0593272]
[1744907424485,0.1177139,84967.0,84966.0,0.00047]
[1744907424689,0.1177208,84962.0,84954.0,0.01131262]
[1744907424890,0.4785208,84962.0,84961.0,0.29531617]
[1744907425293,0.3608,84962.0,84961.0,0.29531617]
[1744907425488,0.0881,84966.0,84965.0,0.1177167]
[1744907425890,0.2058153,84966.0,84965.0,0.1177167]
[1744907426497,0.1177194,84963.0,84962.0,0.1457601]
[1744907426992,0.1177236,84961.0,84960.0,0.1177227]
[1744907427193,0.117725,84959.0,84955.0,0.0862]
[1744907427386,0.117725,84959.0,84958.0,0.11790294]
[1744907427696,0.117725,84959.0,84946.0,0.0588708]
[1744907427697,0.176624,84943.0,84942.0,0.1177429]
[1744907427992,0.1177499,84941.0,84940.0,0.18459802]
[1744907428491,0.1177499,84941.0,84940.0,0.18467802]
[1744907428681,0.2914499,84941.0,84940.0,0.18467802]
[1744907429189,0.1737,84941.0,84940.0,0.30242932]
[1744907429494,0.1737,84941.0,84940.0,0.30234932]
[1744907429495,0.2914499,84941.0,84940.0,0.30234932]
[1744907429692,0.2914499,84941.0,84940.0,0.18467802]
[1744907429881,0.2914499,84941.0,84940.0,0.18459802]
[1744907430081,0.2914499,84941.0,84940.0,0.18467802]
[1744907430488,0.2914499,84941.0,84940.0,0.18459802]
[1744907430683,0.2914499,84941.0,84940.0,0.18467802]
[1744907431284,0.2914499,84941.0,84940.0,0.30242932]
[1744907431793,0.2914499,84941.0,84940.0,0.12483505]
[1744907432303,0.2914499,84941.0,84940.0,0.00708375]
[1744907432594,0.2914499,84941.0,84940.0,0.12483505]
[1744907432791,0.2914499,84941.0,84940.0,0.00708375]
[1744907434190,0.2914499,84941.0,84940.0,0.00700375]
[1744907434392,0.2914499,84941.0,84940.0,0.00708375]
[1744907434693,0.2914499,84941.0,84940.0,0.12483505]
[1744907438504,0.1177555,84937.0,84936.0,0.000108]
[1744907438688,0.3708,84937.0,84916.0,0.0588922]
[1744907438997,0.117786,84915.0,84914.0,0.11814572]
[1744907439300,0.117786,84915.0,84914.0,0.117787]
[1744907439597,0.117786,84915.0,84914.0,0.117867]
[1744907439899,0.11795435,84923.0,84922.0,0.1177763]
[1744907440197,0.30185435,84923.0,84922.0,0.1177763]
[1744907440395,0.117779,84921.0,84920.0,0.2062781]
[1744907440596,0.117779,84921.0,84920.0,0.1177781]
[1744907440998,0.117779,84921.0,84920.0,0.1178581]
[1744907441401,0.117779,84921.0,84920.0,8e-05]
[1744907441600,0.117779,84921.0,84920.0,0.117859]
[1744907441797,0.1177887,84913.0,84912.0,0.2023899]
[1744907442098,0.4785887,84913.0,84912.0,0.2023899]
[1744907442497,0.4785887,84913.0,84912.0,0.2024699]
[1744907442705,0.5678887,84913.0,84912.0,0.2024699]
[1744907444590,0.1052,84917.0,84916.0,0.1177846]
[1744907444998,0.00017665,84923.0,84922.0,0.1177763]
[1744907445406,0.11795155,84923.0,84922.0,0.1177763]
[1744907445601,0.00017665,84923.0,84922.0,0.1177763]
[1744907446204,0.00017665,84923.0,84922.0,0.2065763]
[1744907447098,0.47875155,84923.0,84922.0,0.2065763]
[1744907447704,0.00017665,84923.0,84922.0,0.2065763]
[1744907448010,0.11795155,84923.0,84922.0,0.2065763]
[1744907449799,0.11795155,84923.0,84922.0,0.2066563]
[1744907451008,0.11795155,84923.0,84922.0,0.2065763]
[1744907451211,0.00017665,84923.0,84922.0,0.2065763]
[1744907451508,0.00017665,84923.0,84922.0,0.20706022]
[1744907452609,0.11795155,84923.0,84922.0,0.20714022]
[1744907452810,0.00017665,84923.0,84922.0,0.20714022]
[1744907453201,0.11795155,84923.0,84922.0,0.20706022]
[1744907453406,0.11795155,84923.0,84922.0,0.20714022]
[1744907453905,0.47875155,84923.0,84922.0,0.00056392]
[1744907454116,0.47875155,84923.0,84922.0,0.00048392]
[1744907454301,0.47875155,84923.0,84922.0,0.00056392]
[1744907454705,0.47875155,84923.0,84922.0,0.00048392]
[1744907454909,0.47875155,84923.0,84922.0,0.00056392]
[1744907455112,0.1177887,84913.0,84912.0,0.2023901]
[1744907455409,0.4785887,84913.0,84912.0,0.2023901]
[1744907456102,0.1177887,84913.0,84912.0,0.2023901]
[1744907456302,0.4785887,84913.0,84912.0,0.2023901]
[1744907456502,0.3608,84913.0,84912.0,0.2023901]
[1744907456812,0.4785887,84913.0,84912.0,0.2023901]
[1744907457113,0.4785887,84913.0,84912.0,0.2924901]
[1744907457607,0.3608,84913.0,84912.0,0.2924901]
[1744907457811,0.4785887,84913.0,84912.0,0.2924901]
[1744907459709,0.4785887,84913.0,84912.0,0.2925701]
[1744907460018,0.6609887,84913.0,84912.0,0.2925701]
[1744907461623,0.6609887,84913.0,84912.0,0.2924901]
[1744907461811,0.5715887,84913.0,84912.0,0.2924901]
[1744907462009,0.3608,84913.0,84912.0,0.2924901]
[1744907462216,0.4785887,84913.0,84912.0,0.3814901]
[1744907462407,0.3608,84913.0,84912.0,0.3814901]
[1744907462908,0.4785887,84913.0,84912.0,0.3814901]
[1744907463103,0.3608,84913.0,84912.0,0.3814901]
[1744907463319,0.00017665,84923.0,84921.0,0.0588888]
[1744907463504,0.00017665,84923.0,84922.0,0.2948763]
[1744907463705,0.11795155,84923.0,84922.0,0.2948763]
[1744907464320,0.11795155,84923.0,84922.0,0.0923]
[1744907465206,0.11795155,84923.0,84922.0,0.2101563]
[1744907470419,0.20615155,84923.0,84922.0,0.2101563]
[1744907472214,0.29215155,84923.0,84922.0,0.2101563]
[1744907473127,0.11795155,84923.0,84922.0,0.2101563]
[1744907473314,0.00017665,84923.0,84922.0,0.2101563]
[1744907473516,0.00017665,84923.0,84922.0,0.2945563]
[1744907474315,0.36097665,84923.0,84922.0,0.2945563]
[1744907474515,0.47875155,84923.0,84922.0,0.2945563]
[1744907475312,0.00017665,84923.0,84922.0,0.2945563]
[1744907476020,0.11795155,84923.0,84922.0,0.2945563]
[1744907477817,0.00017665,84923.0,84922.0,0.2945563]
[1744907481024,0.11795155,84923.0,84922.0,0.2945563]
[1744907482531,0.00017665,84923.0,84922.0,0.2945563]
[1744907484717,0.08994878,84933.0,84932.0,0.1177624]
[1744907485124,0.11994197,84938.0,84929.0,0.3608]
[1744907485329,0.11994197,84938.0,84937.0,0.1177555]
[1744907485525,0.14956203,84944.0,84943.0,0.1177471]
[1744907485922,0.14956203,84944.0,84943.0,1.6177471]
[1744907486126,0.14956203,84944.0,84943.0,1.6291953]
[1744907486318,0.14956203,84944.0,84943.0,1.81715427]
[1744907486921,0.14964203,84944.0,84943.0,1.81715427]
[1744907487328,0.17947444,84950.0,84949.0,0.1177388]
[1744907487823,0.00017665,84952.0,84951.0,0.1177361]
[1744907488028,0.00010801,84954.0,84953.0,0.1177333]
[1744907488325,0.4785302,84956.0,84955.0,0.1177305]
[1744907488534,0.3608,84956.0,84955.0,0.1177305]
[1744907488731,0.4785291,84956.0,84955.0,0.1177305]
[1744907488920,0.4785291,84956.0,84955.0,0.088]
[1744907489124,0.1765992,84955.0,84954.0,0.1177319]
[1744907489325,0.4171651,84955.0,84954.0,0.1177319]
[1744907490232,0.2994318,84955.0,84954.0,0.1177319]
[1744907490626,0.2994318,84955.0,84954.0,0.2078319]
[1744907491644,0.3608,84956.0,84955.0,0.1177305]
[1744907491848,0.3608,84956.0,84955.0,1.8821305]
[1744907492449,0.36088,84956.0,84955.0,1.8821305]
[1744907492950,0.09310801,84963.0,84962.0,0.1177208]
[1744907493247,0.093,84963.0,84962.0,0.1177208]
[1744907493451,0.00017665,84964.0,84963.0,0.1177194]
[1744907493748,0.00017665,84964.0,84963.0,1.6177194]
[1744907493938,0.049,84966.0,84965.0,0.1177167]
[1744907494341,0.04908,84966.0,84965.0,0.1177167]
[1744907494546,0.04908,84966.0,84965.0,1.6177167]
[1744907494744,0.049,84966.0,84965.0,1.6177167]
[1744907494950,0.04908,84966.0,84965.0,1.6177167]
[1744907495153,0.1667953,84966.0,84965.0,1.6177167]
[1744907495449,0.04908,84966.0,84965.0,1.6177167]
[1744907496246,0.14048,84966.0,84965.0,1.6177167]
[1744907497354,0.23208,84966.0,84965.0,1.6177167]
[1744907498548,0.00014581,84976.0,84965.0,1.6177167]
[1744907498749,0.37222708,84988.0,84965.0,1.6177167]
[1744907498953,0.32921724,85023.0,85006.0,0.3608]
[1744907499255,0.32921724,85023.0,85022.0,0.8392377]
[1744907499851,0.1781,85033.0,85028.0,0.1176294]
[1744907500452,0.0110204,85029.0,85028.0,0.1176294]
[1744907502255,0.0110204,85029.0,85028.0,0.2088294]
[1744907502556,0.00010801,85037.0,85033.0,0.1176225]
[1744907502748,0.1816,85039.0,85033.0,0.4784225]
[1744907502951,0.00508,85034.0,85033.0,0.4784225]
[1744907503948,0.1227011,85034.0,85033.0,0.3608]
[1744907504160,0.1227011,85034.0,85033.0,0.4784225]
[1744907504455,0.00508,85034.0,85033.0,0.4784225]
[1744907506757,0.005,85034.0,85033.0,0.4784225]
[1744907506956,0.005,85034.0,85033.0,0.5703225]
[1744907507457,0.00508,85034.0,85033.0,0.5703225]
[1744907508754,0.005,85034.0,85033.0,0.5703225]
[1744907508961,0.00508,85034.0,85033.0,0.5703225]